Cogmind - Beta 16 @@@ ROGUE MODE // 2025.11.17 @ 12:32:19 Player: Scringis Result: Destroyed by Y-45 Defender with Beam Rifle Performance ------------- Evolutions (2) 1000 Regions Visited (3) 600 Robots Destroyed (46) 230 Value Destroyed (1257) 1257 Prototype IDs (1) 20 Alien Tech Used (0) 0 Bonus (-141) -141 TOTAL SCORE: 2966 Bonus ------- Friendly Fire -141 Cogmind --------- Core Integrity 0/550 Matter 300/300 Energy 160/160 System Corruption 1% Temperature Cool (9) Movement Walking (190) Ox1 Location -8/Materials Parts ------- > --- POWER (2) -------- Light Nuclear Core > --- PROPULSION (3) --- Carbon-fiber Leg > --- UTILITY (2) ------ Large Storage Unit Advanced Targeting Computer > --- WEAPON (4) ------- (None) > --- INVENTORY (15) --- Makeshift Light Armor Plating Subdweller Laser Rocket Launcher Peak State ------------ > --- POWER ------------ Heavy Ion Engine Subdweller Power Source > --- PROPULSION ------- Light Treads Spiked Treads > --- UTILITY ---------- Large Storage Unit Subdweller Optics > --- WEAPON ----------- Subdweller Beam Cannon Light Assault Rifle Subdweller Machine Gun Subdweller Machine Gun > --- INVENTORY -------- Light Ion Engine Large Storage Unit Makeshift Light Armor Plating Subdweller Laser Subdweller Beam Cannon Rocket Launcher [Rating: 19] Favorites ----------- Power Heavy Ion Engine Engine Heavy Ion Engine Power Core Light Nuclear Core Propulsion Light Treads Treads Light Treads Leg Carbon-fiber Leg Utility Large Storage Unit Device Subdweller Optics Storage Large Storage Unit Processor Advanced Targeting Computer Protection Medium Armor Plating Weapon Light Assault Rifle Energy Gun EM Pulse Gun Energy Cannon Subdweller Beam Cannon Ballistic Gun Light Assault Rifle Launcher Rocket Launcher Build | -11 -10 -10 -8 ------- Run | Yrd Mat Sub Mat Slots Evolved 4 | . . . 4 Power 1 | . . . 1 Propulsion 1 | . . . 1 Utility . | . . . . Weapon 2 | . . . 2 Parts Attached 35 | 5 7 12 11 Power 6 | . 2 1 3 Engine 4 | . 2 1 1 Core 2 | . . . 2 Reactor . | . . . . Propulsion 8 | 2 1 1 4 Treads 7 | 2 1 1 3 Leg 1 | . . . 1 Wheel . | . . . . Hover . | . . . . Flight . | . . . . Utility 7 | 1 2 2 2 Device 1 | . . . 1 Storage 3 | 1 1 1 . Processor 1 | . . . 1 Hackware . | . . . . Protection 2 | . 1 1 . Artifact . | . . . . Weapon 14 | 2 2 8 2 Energy Gun 1 | 1 . . . Energy Cannon 2 | . . . 2 Ballistic Gun 9 | 1 2 6 . Ballistic Cannon . | . . . . Launcher 2 | . . 2 . Special Weapon . | . . . . Impact Weapon . | . . . . Slashing Weapon . | . . . . Piercing Weapon . | . . . . Special Melee Weapon . | . . . . Unidentified Prototypes 1 | . 1 . . Parts Lost 18 | . 3 8 7 Power 4 | . . 1 3 Propulsion 4 | . 1 2 1 Utility 1 | . 1 . . Weapon 9 | . 1 5 3 Highest Loss Streak 2 | . 1 2 2 To Critical Strikes 1 | . . 1 . Average Backups 8 | 1 5 11 4 Power 1 | . 1 2 . Propulsion 1 | . . 1 . Utility 1 | . . 2 1 Weapon 3 | . 2 4 2 Tool/Special . | . . . . Unused Backups 5 | 1 . 2 2 Power 2 | . . 1 1 Propulsion . | . . . . Utility 1 | . . 1 . Weapon 2 | 1 . . 1 Tool/Special . | . . . . Average Slot Usage (%) 81 | . 95 79 52 Engine 12 | . 13 13 5 Treads 21 | . 27 21 7 Storage 13 | . 14 14 9 Protection 4 | . 10 1 . Energy Gun 1 | . 4 . . Ballistic Gun 24 | . 23 27 9 Peak Build Rating 19 | 5 11 15 19 Average Rating 10 | 3 9 11 11 On Entrance 6 | . 5 9 11 Avg Prop Armor Cover (%) . | . . . . Naked Turns . | . . . . Heaviest Build 52 | 8 38 52 52 Greatest Support 40 | 40 40 40 40 Greatest Overweight (x) 11 | 2 . 1 11 Average Overweight (x) . | . . . 1 Largest Inventory Capacity 15 | 8 15 15 15 Average Capacity 14 | 7 14 15 15 Most Carried 15 | 4 8 15 10 Average Carried 8 | 1 5 11 4 Final Capacity 15 | 8 15 15 15 Final Carried 11 | 2 6 11 3 Class Distribution -------------------- 96% | Mutant Dominant Class ---------------- Mutant | -10/Materials Mutant | -10/Subcaves Mutant | -8/Materials Resources | -11 -10 -10 -8 ----------- Run | Yrd Mat Sub Mat Matter Collected 1201 | 191 264 516 230 Remotely . | . . . . Salvage Created 1388 | . 440 497 451 Parts 102 | . 29 41 32 Haulers Intercepted 2 | . 2 . . Recyclers Shooed 2 | . 1 . 1 Parts Field Recycled . | . . . . Retrieved Matter . | . . . . Parts Self-Destructed 6 | . . 6 . Prevented . | . . . . Parts Restored . | . . . . Kills | -11 -10 -10 -8 ------- Run | Yrd Mat Sub Mat Combat Hostiles Destroyed 40 | . 12 13 15 Guns 30 | . 12 12 6 Cannons 4 | . . . 4 AOE 6 | . . 1 5 Classes Destroyed 9 | . 6 3 . Worker 2 | . 1 . 1 Builder 1 | . 1 . . Hauler 2 | . 2 . . Watcher 1 | . 1 . . Swarmer 14 | . 6 . 8 Grunt 11 | . 6 . 5 Sentry 3 | . . 1 2 Subdweller 12 | . . 12 . Scientist 1 | . . 1 . Best Kill Streak 4 | . 3 2 4 Combat Bots Only 4 | . 3 2 4 Max Kills in Single Turn 4 | . 1 2 4 Gunslinging . | . . . . Exploded 4 | . . 1 4 Melee . | . . . . Uniques/NPCs Destroyed . | . . . . Combat | -11 -10 -10 -8 -------- Run | Yrd Mat Sub Mat Hostile Shots Fired 259 | . 74 80 105 Missed 78 | . 14 27 37 Hits 181 | . 60 53 68 Projectile 181 | . 60 53 68 AOE 5 | . . 5 . Critical Strikes 2 | . . 1 1 Part Disruptions 1 | . . . 1 Damage Taken 3055 | . 591 1238 1226 Core 806 | . 87 159 560 Absorbed by Shields . | . . . . Core Remaining (%) 50 | 100 . 1 . Volleys Fired 154 | . 53 62 39 Largest 4 | . 2 2 4 Hottest 180 | . 60 66 180 Shots Fired 283 | . 91 123 69 Gun 254 | . 91 119 44 Cannon 24 | . . . 24 Launcher 5 | . . 4 1 Special . | . . . . Kinetic 253 | . 90 119 44 Thermal 24 | . . . 24 Explosive 5 | . . 4 1 Electromagnetic 1 | . 1 . . Robot Hit Streak 22 | . 9 22 6 Robot Miss Streak 4 | . 3 4 3 Penetration Max . | . . . . Secondary Targets 2 | . 1 1 . Max Gunslinging Chain 1 | . 1 1 . Shots Hit Robots 193 | . 63 88 42 Core Hits 77 | . 27 22 28 Critical Kills . | . . . . Critical Parts Destroyed 1 | . 1 . . Critical Strikes 1 | . 1 . . Destroy 1 | . 1 . . Melee Attacks . | . . . . Impact . | . . . . Slashing . | . . . . Piercing . | . . . . Sneak Attacks . | . . . . Combat Hostiles . | . . . . Follow-up Attacks . | . . . . Damage Inflicted 3206 | . 740 1470 996 Guns 1969 | . 692 1038 239 Cannons 466 | . . . 466 Explosions 723 | . . 432 291 Melee . | . . . . Ramming 48 | . 48 . . Kinetic 1957 | . 680 1038 239 Thermal 466 | . . . 466 Explosive 645 | . . 432 213 Electromagnetic 90 | . 12 . 78 Impact . | . . . . Slashing . | . . . . Piercing . | . . . . Highest Corruption 1 | . . . 1 Average Corruption 1 | . . . 1 Corruption Purged . | . . . . Corruption Blocked . | . . . . Effects 2 | . . . 2 Energy Discharges 2 | . . . 2 Overload Shots . | . . . . Overflow Damage 56 | . . 11 45 Projectiles 24 | . . . 24 Explosions 32 | . . 11 21 Melee . | . . . . Knockbacks . | . . . . Impact . | . . . . Kinetic . | . . . . Secondary . | . . . . Self-Inflicted Damage 33 | . . . 33 Shots 1 | . . . 1 Rammed 7 | . 7 . . Targets Rammed 9 | . 9 . . Kicked . | . . . . Crushed 2 | . 2 . . Highest Temperature 917 | . 41 . 917 Average Temperature 166 | . 10 . 289 Received Heat Transfer 561 | . 159 78 324 Effects 22 | . . . 22 Shutdowns 7 | . . . 7 Energy Bleed 3 | . . . 3 Interference 1 | . . . 1 Matter Decay 1 | . . . 1 Short Circuit 1 | . . . 1 Damage (minor) 2 | . . . 2 Damage (major) 3 | . . . 3 Damage (core) 4 | . . . 4 Siege Activations . | . . . . Martial Activations . | . . . . Shielding Activations . | . . . . Robots Disrupted . | . . . . Combat Hostiles . | . . . . Robots Corrupted . | . . . . Combat Hostiles . | . . . . Parts Fried . | . . . . Impact Corruptions . | . . . . Robots Melted . | . . . . Combat Hostiles . | . . . . Parts Melted 1 | . . . 1 Heat Transferred 629 | . . . 629 Parts Sabotaged . | . . . . Parts Stolen . | . . . . Parts Stripped . | . . . . Power Chain Reactions . | . . . . Alert | -11 -10 -10 -8 ------- Run | Yrd Mat Sub Mat Maximum Alert Level . | . . . . Low Security (%) 100 | 100 100 . 100 Level 1 . | . . . . Level 2 . | . . . . Level 3 . | . . . . Level 4 . | . . . . Level 5 . | . . . . High Security . | . . . . Max Security . | . . . . Peak Influence 184 | . 90 . 184 Initial . | . . . . Average 40 | . 23 . 88 Influence Increases 809 | . 352 20 437 Destroy 0b10 Robot/C 560 | . 240 20 300 Destroy 0b10 Robot/NC 30 | . 25 . 5 Destroy Leader 126 | . 66 . 60 Successful Hack 8 | . 6 . 2 Disable Machine 30 | . . . 30 Destroy Structure 10 | . . . 10 Lose Combat Pursuer 45 | . 15 . 30 Influence Decreases 667 | . 274 98 295 Entered New Map 38 | . . 38 . Time Decay 564 | . 264 50 250 Lost Part 65 | . 10 10 45 Squads Dispatched 6 | . 3 . 3 Investigation 4 | . 2 . 2 Extermination . | . . . . Reinforcement 2 | . 1 . 1 Assault . | . . . . Garrison . | . . . . Intercept . | . . . . Searches Triggered . | . . . . Construction Impeded . | . . . . Haulers Reinforced . | . . . . Active Scanning Responses . | . . . . Cargo Convoy Interrupts . | . . . . Stealth | -11 -10 -10 -8 --------- Run | Yrd Mat Sub Mat Distress Signals 8 | . 4 . 4 Communications Jammed . | . . . . Distress Signals . | . . . . Times Spotted 56 | . 23 13 20 Peak Tracking Total 5 | . 5 2 5 Tactical Retreats 2 | . 1 . 1 Traps | -11 -10 -10 -8 ------- Run | Yrd Mat Sub Mat Traps Triggered 3 | . 3 . . Indirectly . | . . . . Trap Hack Attempts . | . . . . Triggered . | . . . . Disarmed . | . . . . Reprogrammed . | . . . . Reused . | . . . . Traps Extracted . | . . . . Installed . | . . . . Triggered . | . . . . Machines | -11 -10 -10 -8 ---------- Run | Yrd Mat Sub Mat Machines Disabled 2 | . . . 2 Max in Single Turn 2 | . . . 2 Machines Repaired . | . . . . Machines Dismantled . | . . . . Machines Sabotaged . | . . . . Overloaded Fab Kills . | . . . . Hacking | -11 -10 -10 -8 --------- Run | Yrd Mat Sub Mat Machines Accessed 7 | . 3 2 2 Terminals 3 | . 2 . 1 Fabricators . | . . . . Repair Stations . | . . . . Recycling Units 1 | . 1 . . Scanalyzers 1 | . . . 1 Garrison Access . | . . . . Total Hacks 12 | . 6 3 3 Successful 8 | . 4 3 1 Failed 4 | . 2 . 2 Catastrophic 2 | . 2 . . Database Lockouts . | . . . . Manual 8 | . 5 . 3 Terminals 5 | . 4 . 1 Fabricators . | . . . . Repair Stations . | . . . . Recycling Units 2 | . 2 . . Scanalyzers 2 | . . . 2 Garrison Access . | . . . . Terminal Hacks 5 | . 2 3 . Record 2 | . 1 1 . Open Door 1 | . . 1 . Terminal Index 1 | . 1 . . Release Object 1 | . . 1 . Fabricator Hacks . | . . . . Repair Station Hacks . | . . . . Recycling Unit Hacks . | . . . . Scanalyzer 1 | . . . 1 Retrieve Study 1 | . . . 1 Garrison Access Hacks . | . . . . Unauthorized Hacks 2 | . 2 . . Terminals . | . . . . Fabricators . | . . . . Repair Stations . | . . . . Recycling Units 2 | . 2 . . Reject 1 | . 1 . . Recyclers 1 | . 1 . . Scanalyzers . | . . . . Garrison Access . | . . . . Data Cores Recovered . | . . . . Used . | . . . . Hacking Detections 3 | . 1 . 2 Full Trace Events 2 | . 1 . 1 Feedback Events . | . . . . Feedback Blocked . | . . . . Robot Schematics Acquired . | . . . . Robots Built . | . . . . Authchips . | . . . . Time . | . . . . Total Robot Build Rating . | . . . . Part Schematics Acquired . | . . . . Parts Built . | . . . . Authchips . | . . . . Time . | . . . . Total Part Build Rating . | . . . . Part Studies Acquired 1 | . . . 1 Parts Repaired . | . . . . Time . | . . . . Parts Recycled . | . . . . Recycled Matter . | . . . . Retrieved Matter . | . . . . Retrieved Components . | . . . . Parts Scanalyzed . | . . . . Part Schematics Acquired . | . . . . Parts Damaged . | . . . . Bothacking | -11 -10 -10 -8 ------------ Run | Yrd Mat Sub Mat Used RIF Installer . | . . . . Robots Hacked . | . . . . Non-combat . | . . . . Combat . | . . . . Robot Hacks Applied . | . . . . Relay Couplers Released . | . . . . Fabnet Peak Effective % . | . . . . Robots Rewired . | . . . . Allies Hacked . | . . . . Hacks Repelled . | . . . . Allies | -11 -10 -10 -8 -------- Run | Yrd Mat Sub Mat Total Allies . | . . . . Largest Group . | . . . . Highest-Rated Group . | . . . . Highest-Rated Ally . | . . . . Total Orders . | . . . . Ally Attacks . | . . . . Total Damage . | . . . . Kills . | . . . . Allies Corrupted . | . . . . Allies Melted . | . . . . Intel | -11 -10 -10 -8 ------- Run | Yrd Mat Sub Mat Active Infowar (turns) 214 | . . . 214 Optics 214 | . . . 214 Robot Analysis Total . | . . . . Derelict Logs Recovered 1 | . . 1 . Drone Launches . | . . . . Drone Recoveries . | . . . . Exploration | -11 -10 -10 -8 ------------- Run | Yrd Mat Sub Mat Turns Passed 4703 | 76 1468 2561 598 Spaces Moved 2275 | 49 796 1235 195 Core 20 | 15 . . 5 Treads 2151 | 34 796 1235 86 Legs 104 | . . . 104 Wheels . | . . . . Hover . | . . . . Flight . | . . . . Fastest Speed 50 | 50 160 160 160 Average Speed 180 | 130 160 189 224 Slowest Speed 600 | 160 160 240 600 Overloaded Moves . | . . . . Propulsion Burnouts . | . . . . Robots Hopped . | . . . . Potential Cave-ins . | . . . . Cave-ins Triggered . | . . . . Exploration Rate (%) 49 | 4 98 71 26 Regions Visited 3 Branch Regions 1 Pre-discovered Areas . | . . . . Known Exits Taken 1 | . . 1 . Unknown Exits Taken 2 | 1 1 . . Scrap Searched 10 | . . 10 . Spaces Dug . | . . . . Terrain Destroyed 26 | . . 17 9 Melee . | . . . . Projectile 5 | . . . 5 AOE 21 | . . 17 4 Terrain Rammed . | . . . . Walls Destroyed . | . . . . Machines Disabled . | . . . . Actions | -11 -10 -10 -8 --------- Run | Yrd Mat Sub Mat Total 2615 | 62 905 1345 303 Wait 75 | . 27 11 37 Move 2272 | 48 795 1234 195 Hop . | . . . . Pick Up 40 | 8 11 15 6 Fast Attach . | . . . . Attach 36 | 5 5 11 15 Detach 6 | . . 4 2 Swap 8 | . 2 5 1 Drop 15 | 1 3 3 8 Fire 154 | . 53 62 39 Melee . | . . . . Ram . | . . . . Kick . | . . . . Crush 9 | . 9 . . Escape Stasis . | . . . . Rewire . | . . . . Trap . | . . . . Miscellaneous . | . . . . Route ------- -11/Scrapyard -10/Materials (discovered 6 exits: [*Mat x3] / [*Min x2] / *Sub) -10/Subcaves (discovered 2 exits: *Mat x2) -8/Materials History --------- Turn | Location | Event 9 | -11/Scrapyard | Discovered new exit (range 14) 77 | -11/Scrapyard | Entered Materials 312 | -10/Materials | Build established: Mutant 654 | -10/Materials | Discovered new exit (range 15) 966 | -10/Materials | Discovered new exit (range 15) 1159 | -10/Materials | Discovered new exit (range 12) 1307 | -10/Materials | Discovered new exit (range 16) 1352 | -10/Materials | Discovered new exit (range 9) 1463 | -10/Materials | Discovered new exit (range 9) 1545 | -10/Materials | Entered Subcaves 1546 | -10/Subcaves | Approached by a straggling Scientist 1553 | -10/Subcaves | Identified exit to Materials 1561 | -10/Subcaves | Ambushed by Subdwellers from Twisted Machinery 1727 | -10/Subcaves | Discovered exit to Materials (range 9) 2074 | -10/Subcaves | Disturbed a concealed Subdweller 2255 | -10/Subcaves | Shifting Twisted Machinery released Sub. Laser 2580 | -10/Subcaves | Core integrity fell below 50% 2798 | -10/Subcaves | A swath of the cavern ceiling suddenly collapsed 2965 | -10/Subcaves | Core integrity fell below 20% 4106 | -10/Subcaves | Entered Materials 4106 | -8/Materials | Evolved 4 slots: Power x1, Propulsion x1, Weapon x2 4173 | -8/Materials | Core integrity fell below 50% 4455 | -8/Materials | Met 7R-MNS 4577 | -8/Materials | Core integrity fell below 20% 4704 | -8/Materials | Destroyed by Y-45 Defender with Beam Rifle Last Messages --------------- 04609_ Lgt. Assault Rifle+ temporarily disabled. 04609_ G-47 Trooper destroyed. 04609_ Terminal disabled. 04609_ K-01 Serf destroyed. 04611_ R-06 Scavenger collects Heat Sink. 04619_ U-05 Engineer builds a Door. 04620_ System corrupted: Energy discharge (-38). 04624_ U-05 Engineer lays Concrete. 04627_ Acquired Adv. Targeting Computer. 04627_ U-05 Engineer lays Concrete. 04630_ Dropped Broken Sub. Beam Cannon. 04631_ U-05 Engineer lays Concrete. 04631_ Acquired 15 matter. 04632_ U-05 Engineer lays Concrete. 04639_ Acquired 33 matter. 04639_ U-05 Engineer lays Concrete. 04673_ Lgt. Assault Rifle+ destroyed. 04688_ System corrupted: Energy discharge (-60). 04703_ K-01 Serf collects debris. 04704_ M-13 Machinist repairs Y-45 Defender. Map ----- +----------------------------------------------------+ | ?????????????????????????????????????????????????? | | ?????????????????????????????????????????????????? | | ?????????????????????????????????????????????????? | | ?????????????????????????????????????????????????? | | ?????????????????????????????????????????????????? | | ?????????????????????????????????????????????????? | | ?????????????????????????????????????????????????? | | ?????????????????????????????????????????????????? | | ?????????????????????????????????????????????????? | | ?????????????????????????????????????????????????? | | ?????????????????????????????????????????????????? | | ?????????????????????####????????????????????????? | | ??????????????????? ????????????????????????? | | ??????????????????? ????????????????????????? | | ???????????????????# ""??????????????????????? | | ?? ???????????????# ""??????????????????????? | | ?? ?#?????????????# ""??????????????????????? | | ??% #?????????????# ! ??????????????????????? | | ??% #?????????????# u ??????????????????????? | | ?? #?????????????# #??????????????????????? | | ?? % #?????????????# #??????????????????????? | | ?? ??????????????# #??????????????????????? | | ?+ % ?????########## #??????????????????????? | | ?# ????? k % #??????????????????????? | | ?# ?????? +??????????????????????? | | ?# ?????? ua @#??????????????????????? | | ?# #########?????###### #??????????????????????? | | ?# ##] #??????????# #??????????????????????? | | ## ## "" #?????##???# #??????????????????????? | | # # ""S #???### #### #??????????????????????? | | ! + "" #???# # #??????????????????????? | | # # #???#! ""# #??????????????????????? | | ## ## #???# Y"# #??????????????????????? | | ?#%#########???# !! ""# #??????????????????????? | | ##+######??????# ! # #??????????????????????? | | [% #???????? #Y #??????????????????????? | | ###########+###m #??????????????????????? | | # % % #??????????????????????? | | / % #??????????????????????? | | # a #??????????????????????? | | ! * # ##############%##??????????????????????? | | ] # #????????????#%#???????????????????????? | | = # #????????????# #???????????????????????? | | ######%## #????????????# #???????????????????????? | | ?????#### #????????????#%#???????????????????????? | | ????????# #????????????? #???????????????????????? | | ????????# #????????????? ???????????????????????? | | ????????? ?????????????? ???????????????????????? | | ????????? ?????????????? ???????????????????????? | | ????????? ?????????????? ???????????????????????? | +----------------------------------------------------+ Best States ------------- Heat Dissipation 31 Energy Generation 24 Energy Capacity 380 Matter Stores 300 Matter Capacity 300 Sight Range 21 Terrain Scan Density 10 Armor Coverage 225 Evasion (%) 50 Targeting Accuracy 8 Recoil Reduction 2 Item Schematics ----------------- None Robot Schematics ------------------ None Fabricated ------------ Nothing Repaired ---------- Nothing Studied --------- Lgt. Assault Rifle | -8/Materials | Hacked Alien Tech Used ----------------- None Achievements -------------- None Challenges ------------ None Game ------ Seed TeslaDisposableManipulator Manual? 0 Play Time 00:22:09 Cumulative 48.7 hours Start 2025.11.17 @ 12:08:19 End 2025.11.17 @ 12:32:19 Sessions 1 Manual Loads 0 Difficulty Rogue Special Mode None Game No. 137 Rogue 137 Adventurer 0 Explorer 0 Win Type - Total 0 Types 0/0/0/0/0/0/0/0/0/0 Lore% 25 Gallery% 31 Achievement% 25 Wizard Run 0 Options --------- Layout 1 ASCII 0 Keyboard 0 Movement Numpad Keybinds 0 Fullscreen 2 Font 24/Smallcaps Map View 50x35 Zoom Use 0% Tactical HUD 1 Map Filters NONE Filters NONE Steam 1 RUN: 27158542-2e38-4da3-813f-ca3c6555f5b9